[Event "Titled Tuesday Blitz March 22 Early 2022"]
[White "Dwilewicz, Katarzyna"]
[Black "Krysa, Leandro"]
[WhiteFideId "1148486"]
[BlackFideId "116807"]
[WhiteElo "1907"]
[BlackElo "2490"]
[Result "0-1"]
[Round "01"]
[TimeControl "180+1"]
[Date "2022.03.22"]
[WhiteClock "0:00:08"]
[BlackClock "0:01:25"]

1. e4 {[%clk 0:02:57]}  e5 {[%clk 0:02:59]} 2. Nf3 {[%clk 0:02:55]}  Nf6 {[%clk 0:03:00]} 3. Nxe5 {[%clk 0:02:54]}  d6 {[%clk 0:02:59]} 4. Nf3 {[%clk 0:02:54]}  Nxe4 {[%clk 0:03:00]} 5. d4 {[%clk 0:02:54]}  d5 {[%clk 0:02:58]} 6. Bd3 {[%clk 0:02:54]}  Be7 {[%clk 0:02:54]} 7. O-O {[%clk 0:02:53]}  Nc6 {[%clk 0:02:52]} 8. h3 {[%clk 0:02:50]}  O-O {[%clk 0:02:49]} 9. Re1 {[%clk 0:02:48]}  Bf5 {[%clk 0:02:48]} 10. c4 {[%clk 0:02:38]}  Nb4 {[%clk 0:02:44]} 11. Bxe4 {[%clk 0:02:30]}  dxe4 {[%clk 0:02:36]} 12. Ne5 {[%clk 0:02:04]}  f6 {[%clk 0:02:33]} 13. Ng4 {[%clk 0:02:00]}  Nd3 {[%clk 0:02:29]} 14. Re2 {[%clk 0:01:40]}  Qxd4 {[%clk 0:02:28]} 15. Ne3 {[%clk 0:01:30]}  Bg6 {[%clk 0:02:28]} 16. Nd5 {[%clk 0:01:30]}  Bd6 {[%clk 0:02:23]} 17. Nd2 {[%clk 0:00:55]}  Nxf2 {[%clk 0:02:13]} 18. Rxf2 {[%clk 0:00:50]}  e3 {[%clk 0:01:57]} 19. Nxe3 {[%clk 0:00:48]}  Qxe3 {[%clk 0:01:56]} 20. Qf3 {[%clk 0:00:40]}  Bc5 {[%clk 0:01:50]} 21. Qxe3 {[%clk 0:00:25]}  Bxe3 {[%clk 0:01:49]} 22. Nf3 {[%clk 0:00:26]}  Bxf2+ {[%clk 0:01:49]} 23. Kxf2 {[%clk 0:00:27]}  Rad8 {[%clk 0:01:48]} 24. Bf4 {[%clk 0:00:27]}  c5 {[%clk 0:01:45]} 25. Re1 {[%clk 0:00:26]}  Rfe8 {[%clk 0:01:45]} 26. g4 {[%clk 0:00:17]}  Rxe1 {[%clk 0:01:44]} 27. Nxe1 {[%clk 0:00:17]}  Be4 {[%clk 0:01:42]} 28. Be3 {[%clk 0:00:13]}  b6 {[%clk 0:01:41]} 29. Ke2 {[%clk 0:00:14]}  Kf7 {[%clk 0:01:38]} 30. a3 {[%clk 0:00:10]}  a5 {[%clk 0:01:37]} 31. h4 {[%clk 0:00:08]}  h5 {[%clk 0:01:35]} 32. gxh5 {[%clk 0:00:08]}  Rh8 {[%clk 0:01:34]} 33. b4 {[%clk 0:00:07]}  cxb4 {[%clk 0:01:31]} 34. axb4 {[%clk 0:00:07]}  axb4 {[%clk 0:01:31]} 35. Bxb6 {[%clk 0:00:08]}  b3 {[%clk 0:01:31]} 36. Bd4 {[%clk 0:00:08]}  Rxh5 {[%clk 0:01:29]} 37. c5 {[%clk 0:00:08]}  Rxh4 {[%clk 0:01:29]} 38. Ke3 {[%clk 0:00:08]}  Ke6 {[%clk 0:01:25]} 0-1


[Site "https://www.chess.com"]

[Event "Titled Tuesday Blitz March 22 Early 2022"]
[White "Eynullayev, Atilla"]
[Black "Jumabayev, Rinat"]
[WhiteFideId "13413570"]
[BlackFideId "13702661"]
[WhiteElo "1979"]
[BlackElo "2561"]
[Result "0-1"]
[Round "01"]
[TimeControl "180+1"]
[Date "2022.03.22"]
[WhiteClock "0:00:07"]
[BlackClock "0:00:14"]

1. e4 {[%clk 0:03:00]}  e6 {[%clk 0:02:58]} 2. d4 {[%clk 0:03:01]}  d5 {[%clk 0:02:59]} 3. e5 {[%clk 0:03:01]}  c5 {[%clk 0:02:58]} 4. c3 {[%clk 0:03:02]}  Nc6 {[%clk 0:02:59]} 5. Nf3 {[%clk 0:03:02]}  Bd7 {[%clk 0:02:58]} 6. a3 {[%clk 0:03:02]}  Rc8 {[%clk 0:02:57]} 7. Bd3 {[%clk 0:03:00]}  cxd4 {[%clk 0:02:54]} 8. cxd4 {[%clk 0:03:00]}  Qb6 {[%clk 0:02:54]} 9. Bc2 {[%clk 0:02:58]}  Nxd4 {[%clk 0:02:28]} 10. Nxd4 {[%clk 0:02:56]}  Bc5 {[%clk 0:02:29]} 11. Ne2 {[%clk 0:01:39]}  Bxf2+ {[%clk 0:02:23]} 12. Kf1 {[%clk 0:01:40]}  Be3 {[%clk 0:02:09]} 13. Nbc3 {[%clk 0:01:20]}  Bxc1 {[%clk 0:02:07]} 14. Rxc1 {[%clk 0:01:20]}  Qxb2 {[%clk 0:02:07]} 15. Qd2 {[%clk 0:01:12]}  Qxa3 {[%clk 0:01:55]} 16. Rb1 {[%clk 0:01:05]}  b6 {[%clk 0:01:53]} 17. h4 {[%clk 0:00:59]}  Nh6 {[%clk 0:01:47]} 18. Rh3 {[%clk 0:00:59]}  Qe7 {[%clk 0:01:42]} 19. Nf4 {[%clk 0:00:39]}  Ng4 {[%clk 0:01:32]} 20. Nh5 {[%clk 0:00:33]}  g6 {[%clk 0:01:29]} 21. Nf4 {[%clk 0:00:25]}  Nxe5 {[%clk 0:01:20]} 22. h5 {[%clk 0:00:24]}  g5 {[%clk 0:01:19]} 23. Nfe2 {[%clk 0:00:23]}  h6 {[%clk 0:01:16]} 24. Kg1 {[%clk 0:00:22]}  O-O {[%clk 0:01:15]} 25. Kh1 {[%clk 0:00:22]}  f5 {[%clk 0:01:15]} 26. Nd4 {[%clk 0:00:21]}  Ng4 {[%clk 0:01:11]} 27. Rf3 {[%clk 0:00:20]}  Qf7 {[%clk 0:01:11]} 28. Rh3 {[%clk 0:00:15]}  Kh8 {[%clk 0:01:05]} 29. Ndb5 {[%clk 0:00:15]}  Rc5 {[%clk 0:00:34]} 30. Nxa7 {[%clk 0:00:10]}  e5 {[%clk 0:00:34]} 31. Rxb6 {[%clk 0:00:10]}  d4 {[%clk 0:00:34]} 32. Nd1 {[%clk 0:00:07]}  Qc4 {[%clk 0:00:25]} 33. Bd3 {[%clk 0:00:05]}  Qc1 {[%clk 0:00:25]} 34. Qxc1 {[%clk 0:00:03]}  Rxc1 {[%clk 0:00:26]} 35. Be2 {[%clk 0:00:04]}  Nf2+ {[%clk 0:00:22]} 36. Kh2 {[%clk 0:00:04]}  Nxh3 {[%clk 0:00:18]} 37. Rxh6+ {[%clk 0:00:04]}  Kg7 {[%clk 0:00:18]} 38. Rg6+ {[%clk 0:00:05]}  Kf7 {[%clk 0:00:19]} 39. Kxh3 {[%clk 0:00:05]}  f4+ {[%clk 0:00:16]} 40. Kh2 {[%clk 0:00:05]}  g4 {[%clk 0:00:17]} 41. Nf2 {[%clk 0:00:04]}  g3+ {[%clk 0:00:17]} 42. Rxg3 {[%clk 0:00:05]}  fxg3+ {[%clk 0:00:17]} 43. Kxg3 {[%clk 0:00:05]}  Ke7 {[%clk 0:00:17]} 44. Ne4 {[%clk 0:00:05]}  Rc2 {[%clk 0:00:17]} 45. Bd3 {[%clk 0:00:06]}  Rb2 {[%clk 0:00:17]} 46. Nc5 {[%clk 0:00:05]}  Rg8+ {[%clk 0:00:17]} 47. Kf3 {[%clk 0:00:05]}  Rbxg2 {[%clk 0:00:14]} 48. Nxd7 {[%clk 0:00:06]}  Kxd7 {[%clk 0:00:14]} 49. Bb5+ {[%clk 0:00:06]}  Kd6 {[%clk 0:00:14]} 50. Nc6 {[%clk 0:00:07]}  R8g3+ {[%clk 0:00:13]} 51. Ke4 {[%clk 0:00:08]}  Rg5 {[%clk 0:00:13]} 52. Nb4 {[%clk 0:00:07]}  R2g4+ {[%clk 0:00:14]} 53. Kd3 {[%clk 0:00:08]}  Rg3+ {[%clk 0:00:14]} 54. Kc4 {[%clk 0:00:07]}  Rc3# {[%clk 0:00:14]} 0-1


[Site "https://www.chess.com"]

[Event "Titled Tuesday Blitz March 22 Early 2022"]
[White "Ferreira, Vitor Hugo Vieira"]
[Black "Bluebaum, Matthias"]
[WhiteFideId "2119765"]
[BlackFideId "24651516"]
[WhiteElo "2165"]
[BlackElo "2550"]
[Result "0-1"]
[Round "01"]
[TimeControl "180+1"]
[Date "2022.03.22"]
[WhiteClock "0:00:57"]
[BlackClock "0:01:13"]

1. Nf3 {[%clk 0:02:49]}  d5 {[%clk 0:03:00]} 2. g3 {[%clk 0:02:47]}  Bg4 {[%clk 0:03:00]} 3. Bg2 {[%clk 0:02:46]}  e6 {[%clk 0:03:01]} 4. O-O {[%clk 0:02:35]}  Nf6 {[%clk 0:03:01]} 5. c4 {[%clk 0:02:35]}  c6 {[%clk 0:03:01]} 6. cxd5 {[%clk 0:02:36]}  Bxf3 {[%clk 0:03:01]} 7. exf3 {[%clk 0:02:34]}  cxd5 {[%clk 0:03:02]} 8. d4 {[%clk 0:02:34]}  Nc6 {[%clk 0:03:02]} 9. f4 {[%clk 0:02:33]}  g6 {[%clk 0:03:02]} 10. Nd2 {[%clk 0:02:29]}  Bg7 {[%clk 0:03:01]} 11. Nf3 {[%clk 0:02:29]}  Nd7 {[%clk 0:02:56]} 12. Ne5 {[%clk 0:02:29]}  Ndxe5 {[%clk 0:02:56]} 13. dxe5 {[%clk 0:02:25]}  O-O {[%clk 0:02:56]} 14. b3 {[%clk 0:02:24]}  Rc8 {[%clk 0:02:55]} 15. Ba3 {[%clk 0:02:23]}  Re8 {[%clk 0:02:56]} 16. Bd6 {[%clk 0:02:23]}  Bf8 {[%clk 0:02:56]} 17. Bxf8 {[%clk 0:02:22]}  Rxf8 {[%clk 0:02:57]} 18. Rc1 {[%clk 0:02:21]}  Qa5 {[%clk 0:02:57]} 19. Qe2 {[%clk 0:02:18]}  Qa3 {[%clk 0:02:57]} 20. Qd2 {[%clk 0:02:16]}  Nb4 {[%clk 0:02:36]} 21. Rxc8 {[%clk 0:02:16]}  Rxc8 {[%clk 0:02:36]} 22. f5 {[%clk 0:02:16]}  exf5 {[%clk 0:02:36]} 23. e6 {[%clk 0:02:16]}  fxe6 {[%clk 0:02:36]} 24. Re1 {[%clk 0:01:50]}  Rc6 {[%clk 0:01:51]} 25. Qf4 {[%clk 0:01:33]}  Qa5 {[%clk 0:01:37]} 26. Qb8+ {[%clk 0:01:10]}  Kg7 {[%clk 0:01:37]} 27. Qe5+ {[%clk 0:00:57]}  Kf7 {[%clk 0:01:13]} 0-1


[Site "https://www.chess.com"]

[Event "Titled Tuesday Blitz March 22 Early 2022"]
[White "Hakobyan, Aram"]
[Black "Hoeffer, David"]
[WhiteFideId "13306677"]
[BlackFideId "24606766"]
[WhiteElo "2557"]
[BlackElo "2301"]
[Result "1-0"]
[Round "01"]
[TimeControl "180+1"]
[Date "2022.03.22"]
[WhiteClock "0:02:07"]
[BlackClock "0:01:57"]

1. d4 {[%clk 0:02:59]}  d5 {[%clk 0:02:59]} 2. Nf3 {[%clk 0:02:59]}  Nf6 {[%clk 0:02:59]} 3. c3 {[%clk 0:02:58]}  Bf5 {[%clk 0:02:56]} 4. Qb3 {[%clk 0:02:58]}  Qc8 {[%clk 0:02:56]} 5. c4 {[%clk 0:02:57]}  e6 {[%clk 0:02:56]} 6. Nc3 {[%clk 0:02:57]}  c6 {[%clk 0:02:55]} 7. cxd5 {[%clk 0:02:55]}  exd5 {[%clk 0:02:55]} 8. Bf4 {[%clk 0:02:54]}  Nbd7 {[%clk 0:02:55]} 9. Rc1 {[%clk 0:02:54]}  Nb6 {[%clk 0:02:51]} 10. e3 {[%clk 0:02:51]}  Be7 {[%clk 0:02:51]} 11. h3 {[%clk 0:02:51]}  O-O {[%clk 0:02:51]} 12. Be2 {[%clk 0:02:47]}  Ne4 {[%clk 0:02:50]} 13. O-O {[%clk 0:02:43]}  Nxc3 {[%clk 0:02:50]} 14. bxc3 {[%clk 0:02:40]}  Re8 {[%clk 0:02:45]} 15. a4 {[%clk 0:02:37]}  Be6 {[%clk 0:02:42]} 16. Nd2 {[%clk 0:02:35]}  Nd7 {[%clk 0:02:34]} 17. c4 {[%clk 0:02:33]}  dxc4 {[%clk 0:02:34]} 18. Bxc4 {[%clk 0:02:31]}  Bxc4 {[%clk 0:02:33]} 19. Nxc4 {[%clk 0:02:32]}  Nf6 {[%clk 0:02:33]} 20. Ne5 {[%clk 0:02:16]}  Rf8 {[%clk 0:02:16]} 21. Rfd1 {[%clk 0:02:08]}  Nd5 {[%clk 0:02:16]} 22. Bg3 {[%clk 0:02:08]}  Bf6 {[%clk 0:02:06]} 23. Nc4 {[%clk 0:02:08]}  Re8 {[%clk 0:02:00]} 24. Nd6 {[%clk 0:02:08]}  Qd8 {[%clk 0:02:01]} 25. Nxe8 {[%clk 0:02:07]}  Qxe8 {[%clk 0:02:02]} 26. Qxb7 {[%clk 0:02:07]}  Nxe3 {[%clk 0:01:56]} 27. fxe3 {[%clk 0:02:06]}  Qxe3+ {[%clk 0:01:57]} 28. Bf2 {[%clk 0:02:07]} 1-0


[Site "https://www.chess.com"]

[Event "Titled Tuesday Blitz March 22 Early 2022"]
[White "Horcajuelo Rocamora, Martin"]
[Black "Gatterer, Florian"]
[WhiteFideId "24573027"]
[BlackFideId "811688"]
[WhiteElo "1706"]
[BlackElo "2218"]
[Result "0-1"]
[Round "01"]
[TimeControl "180+1"]
[Date "2022.03.22"]
[WhiteClock "0:00:06"]
[BlackClock "0:00:32"]

1. d4 {[%clk 0:02:55]}  Nf6 {[%clk 0:02:58]} 2. c4 {[%clk 0:02:53]}  e6 {[%clk 0:02:58]} 3. Nf3 {[%clk 0:02:52]}  d5 {[%clk 0:02:57]} 4. Nc3 {[%clk 0:02:51]}  c5 {[%clk 0:02:57]} 5. cxd5 {[%clk 0:02:50]}  Nxd5 {[%clk 0:02:58]} 6. Nxd5 {[%clk 0:02:47]}  Qxd5 {[%clk 0:02:55]} 7. dxc5 {[%clk 0:02:46]}  Qxd1+ {[%clk 0:02:54]} 8. Kxd1 {[%clk 0:02:47]}  Bxc5 {[%clk 0:02:53]} 9. e3 {[%clk 0:02:46]}  O-O {[%clk 0:02:51]} 10. Bc4 {[%clk 0:02:39]}  Nc6 {[%clk 0:02:45]} 11. a3 {[%clk 0:02:25]}  a5 {[%clk 0:02:42]} 12. Ke2 {[%clk 0:02:06]}  e5 {[%clk 0:02:42]} 13. Bd2 {[%clk 0:01:26]}  e4 {[%clk 0:02:41]} 14. Ng5 {[%clk 0:01:25]}  Bg4+ {[%clk 0:02:38]} 15. f3 {[%clk 0:01:24]}  exf3+ {[%clk 0:02:38]} 16. gxf3 {[%clk 0:01:25]}  Bh5 {[%clk 0:02:38]} 17. e4 {[%clk 0:01:25]}  h6 {[%clk 0:02:24]} 18. Nh3 {[%clk 0:01:13]}  Nd4+ {[%clk 0:02:20]} 19. Kd3 {[%clk 0:00:55]}  Nxf3 {[%clk 0:02:19]} 20. Bc3 {[%clk 0:00:50]}  Rad8+ {[%clk 0:01:59]} 21. Bd5 {[%clk 0:00:47]}  b6 {[%clk 0:01:38]} 22. Nf4 {[%clk 0:00:41]}  Bg4 {[%clk 0:01:31]} 23. Kc4 {[%clk 0:00:09]}  Rc8 {[%clk 0:01:19]} 24. Kb3 {[%clk 0:00:07]}  Nd4+ {[%clk 0:01:14]} 25. Ka2 {[%clk 0:00:07]}  Ne6 {[%clk 0:01:14]} 26. Nd3 {[%clk 0:00:06]}  Bd4 {[%clk 0:01:06]} 27. Bd2 {[%clk 0:00:05]}  Nc5 {[%clk 0:00:58]} 28. Nxc5 {[%clk 0:00:05]}  Bxc5 {[%clk 0:00:58]} 29. h3 {[%clk 0:00:05]}  Be6 {[%clk 0:00:57]} 30. Bxe6 {[%clk 0:00:05]}  fxe6 {[%clk 0:00:58]} 31. Bc3 {[%clk 0:00:06]}  Rcd8 {[%clk 0:00:52]} 32. Rh2 {[%clk 0:00:06]}  Bd4 {[%clk 0:00:49]} 33. Bd2 {[%clk 0:00:05]}  Rf2 {[%clk 0:00:46]} 34. Rxf2 {[%clk 0:00:05]}  Bxf2 {[%clk 0:00:46]} 35. Bc3 {[%clk 0:00:06]}  Bd4 {[%clk 0:00:45]} 36. Rd1 {[%clk 0:00:05]}  e5 {[%clk 0:00:45]} 37. Bxd4 {[%clk 0:00:05]}  exd4 {[%clk 0:00:41]} 38. Kb3 {[%clk 0:00:05]}  Kf7 {[%clk 0:00:41]} 39. Kc4 {[%clk 0:00:04]}  Ke6 {[%clk 0:00:36]} 40. Rxd4 {[%clk 0:00:04]}  Rxd4+ {[%clk 0:00:36]} 41. Kxd4 {[%clk 0:00:05]}  g5 {[%clk 0:00:36]} 42. Ke3 {[%clk 0:00:05]}  Ke5 {[%clk 0:00:34]} 43. Kf3 {[%clk 0:00:05]}  h5 {[%clk 0:00:34]} 44. b3 {[%clk 0:00:05]}  b5 {[%clk 0:00:34]} 45. a4 {[%clk 0:00:05]}  b4 {[%clk 0:00:32]} 46. Ke3 {[%clk 0:00:05]}  g4 {[%clk 0:00:32]} 47. hxg4 {[%clk 0:00:06]} 0-1


[Site "https://www.chess.com"]

[Event "Titled Tuesday Blitz March 22 Early 2022"]
[White "Itkis, Boris"]
[Black "Atakhan, Abtin"]
[WhiteFideId "1209167"]
[BlackFideId "22502203"]
[WhiteElo "2207"]
[BlackElo "2119"]
[Result "0-1"]
[Round "01"]
[TimeControl "180+1"]
[Date "2022.03.22"]
[WhiteClock "0:01:49"]
[BlackClock "0:01:53"]

1. c4 {[%clk 0:02:59]}  g6 {[%clk 0:02:56]} 2. Nf3 {[%clk 0:02:58]}  Bg7 {[%clk 0:02:56]} 3. g3 {[%clk 0:02:58]}  c5 {[%clk 0:02:57]} 4. Bg2 {[%clk 0:02:59]}  Nc6 {[%clk 0:02:57]} 5. O-O {[%clk 0:02:59]}  d6 {[%clk 0:02:58]} 6. e3 {[%clk 0:03:00]}  Bf5 {[%clk 0:02:57]} 7. Nc3 {[%clk 0:03:01]}  Qd7 {[%clk 0:02:57]} 8. d4 {[%clk 0:03:00]}  Bh3 {[%clk 0:02:51]} 9. dxc5 {[%clk 0:02:59]}  Bxg2 {[%clk 0:02:43]} 10. Kxg2 {[%clk 0:02:58]}  dxc5 {[%clk 0:02:44]} 11. Qxd7+ {[%clk 0:02:58]}  Kxd7 {[%clk 0:02:44]} 12. Rd1+ {[%clk 0:02:57]}  Kc8 {[%clk 0:02:35]} 13. Bd2 {[%clk 0:02:55]}  Nf6 {[%clk 0:02:29]} 14. Ne2 {[%clk 0:02:50]}  Kc7 {[%clk 0:02:26]} 15. Bc3 {[%clk 0:02:50]}  Rhd8 {[%clk 0:02:22]} 16. Nf4 {[%clk 0:02:49]}  Rxd1 {[%clk 0:02:10]} 17. Rxd1 {[%clk 0:02:50]}  Rd8 {[%clk 0:02:10]} 18. Rxd8 {[%clk 0:02:41]}  Kxd8 {[%clk 0:02:11]} 19. Ng5 {[%clk 0:02:21]}  Ke8 {[%clk 0:02:10]} 20. Nxh7 {[%clk 0:02:20]}  Nxh7 {[%clk 0:02:09]} 21. Bxg7 {[%clk 0:02:20]}  f6 {[%clk 0:02:10]} 22. Bh6 {[%clk 0:02:12]}  Kf7 {[%clk 0:02:08]} 23. h4 {[%clk 0:02:11]}  Ne5 {[%clk 0:02:06]} 24. Ne2 {[%clk 0:02:00]}  Nxc4 {[%clk 0:01:56]} 25. b3 {[%clk 0:01:59]}  Nd6 {[%clk 0:01:55]} 26. f4 {[%clk 0:01:49]}  Nf5 {[%clk 0:01:53]} 0-1


[Site "https://www.chess.com"]

[Event "Titled Tuesday Blitz March 22 Early 2022"]
[White "Jaferian, Koosha"]
[Black "Thomas, Anysia"]
[WhiteFideId "12507440"]
[BlackFideId "670472"]
[WhiteElo "2030"]
[BlackElo "2002"]
[Result "1-0"]
[Round "01"]
[TimeControl "180+1"]
[Date "2022.03.22"]
[WhiteClock "0:00:36"]
[BlackClock "0:00:01"]

1. Nf3 {[%clk 0:03:00]}  g6 {[%clk 0:02:40]} 2. b3 {[%clk 0:03:00]}  Bg7 {[%clk 0:02:38]} 3. d4 {[%clk 0:03:00]}  Nf6 {[%clk 0:02:35]} 4. Bb2 {[%clk 0:03:01]}  O-O {[%clk 0:02:34]} 5. g3 {[%clk 0:03:02]}  d5 {[%clk 0:02:34]} 6. Bg2 {[%clk 0:03:02]}  Nbd7 {[%clk 0:02:35]} 7. O-O {[%clk 0:03:02]}  c5 {[%clk 0:02:35]} 8. e3 {[%clk 0:03:01]}  b6 {[%clk 0:02:35]} 9. Nbd2 {[%clk 0:03:01]}  Bb7 {[%clk 0:02:35]} 10. c4 {[%clk 0:03:02]}  Re8 {[%clk 0:02:34]} 11. Rc1 {[%clk 0:03:01]}  Rc8 {[%clk 0:02:33]} 12. Qe2 {[%clk 0:03:01]}  cxd4 {[%clk 0:02:23]} 13. Nxd4 {[%clk 0:03:01]}  e5 {[%clk 0:02:21]} 14. Nb5 {[%clk 0:03:02]}  Nc5 {[%clk 0:02:12]} 15. cxd5 {[%clk 0:02:42]}  Nxd5 {[%clk 0:02:05]} 16. Rfd1 {[%clk 0:02:41]}  Qe7 {[%clk 0:02:00]} 17. Nc4 {[%clk 0:02:31]}  Red8 {[%clk 0:01:55]} 18. e4 {[%clk 0:01:51]}  Nb4 {[%clk 0:01:39]} 19. Nbd6 {[%clk 0:01:48]}  Rb8 {[%clk 0:01:20]} 20. Nxb7 {[%clk 0:01:48]}  Rxd1+ {[%clk 0:01:17]} 21. Rxd1 {[%clk 0:01:48]}  Rxb7 {[%clk 0:01:16]} 22. a3 {[%clk 0:01:44]}  Nc6 {[%clk 0:01:07]} 23. b4 {[%clk 0:01:44]}  Na4 {[%clk 0:01:04]} 24. Ba1 {[%clk 0:01:36]}  Nd4 {[%clk 0:01:01]} 25. Qa2 {[%clk 0:01:20]}  Rd7 {[%clk 0:00:42]} 26. Ne3 {[%clk 0:01:18]}  Qd8 {[%clk 0:00:32]} 27. Nd5 {[%clk 0:01:16]}  b5 {[%clk 0:00:27]} 28. f4 {[%clk 0:01:01]}  a6 {[%clk 0:00:19]} 29. fxe5 {[%clk 0:01:01]}  Nc6 {[%clk 0:00:15]} 30. Qd2 {[%clk 0:01:00]}  Nxe5 {[%clk 0:00:14]} 31. Bxe5 {[%clk 0:01:00]}  Bxe5 {[%clk 0:00:13]} 32. Ne7+ {[%clk 0:00:52]}  Qxe7 {[%clk 0:00:13]} 33. Qxd7 {[%clk 0:00:52]}  Qg5 {[%clk 0:00:07]} 34. Qd8+ {[%clk 0:00:52]}  Qxd8 {[%clk 0:00:06]} 35. Rxd8+ {[%clk 0:00:53]}  Kg7 {[%clk 0:00:07]} 36. Ra8 {[%clk 0:00:53]}  Bd4+ {[%clk 0:00:07]} 37. Kf1 {[%clk 0:00:52]}  Bb2 {[%clk 0:00:07]} 38. Rxa6 {[%clk 0:00:48]}  Bxa3 {[%clk 0:00:07]} 39. e5 {[%clk 0:00:40]}  Bxb4 {[%clk 0:00:07]} 40. Ra7 {[%clk 0:00:41]}  Nc5 {[%clk 0:00:07]} 41. Bd5 {[%clk 0:00:39]}  Kh6 {[%clk 0:00:03]} 42. Rxf7 {[%clk 0:00:38]}  Nd3 {[%clk 0:00:02]} 43. e6 {[%clk 0:00:37]}  Nc5 {[%clk 0:00:01]} 44. e7 {[%clk 0:00:36]} 1-0


[Site "https://www.chess.com"]

[Event "Titled Tuesday Blitz March 22 Early 2022"]
[White "Jobava, Baadur"]
[Black "Cremisi, Daniel"]
[WhiteFideId "13601520"]
[BlackFideId "2089882"]
[WhiteElo "2617"]
[BlackElo "2172"]
[Result "1-0"]
[Round "01"]
[TimeControl "180+1"]
[Date "2022.03.22"]
[WhiteClock "0:00:38"]
[BlackClock "0:00:28"]

1. e4 {[%clk 0:02:59]}  e6 {[%clk 0:02:59]} 2. d4 {[%clk 0:02:58]}  d5 {[%clk 0:03:00]} 3. exd5 {[%clk 0:02:58]}  exd5 {[%clk 0:03:00]} 4. Nf3 {[%clk 0:02:59]}  Nf6 {[%clk 0:03:00]} 5. Bd3 {[%clk 0:02:59]}  Bd6 {[%clk 0:03:01]} 6. O-O {[%clk 0:02:59]}  O-O {[%clk 0:03:02]} 7. h3 {[%clk 0:02:59]}  h6 {[%clk 0:03:01]} 8. Re1 {[%clk 0:02:59]}  c6 {[%clk 0:03:01]} 9. Nc3 {[%clk 0:02:59]}  Re8 {[%clk 0:03:01]} 10. Rxe8+ {[%clk 0:02:58]}  Qxe8 {[%clk 0:03:02]} 11. Ne2 {[%clk 0:02:59]}  Ne4 {[%clk 0:03:00]} 12. Bf4 {[%clk 0:02:58]}  Bxf4 {[%clk 0:03:00]} 13. Nxf4 {[%clk 0:02:59]}  Bf5 {[%clk 0:03:00]} 14. Qe2 {[%clk 0:02:45]}  Nd7 {[%clk 0:02:57]} 15. Re1 {[%clk 0:02:45]}  Qb8 {[%clk 0:02:45]} 16. Qe3 {[%clk 0:02:41]}  Qd6 {[%clk 0:02:45]} 17. c4 {[%clk 0:02:39]}  Re8 {[%clk 0:02:39]} 18. cxd5 {[%clk 0:02:38]}  cxd5 {[%clk 0:02:39]} 19. Qc1 {[%clk 0:02:29]}  Ndf6 {[%clk 0:02:36]} 20. Ne5 {[%clk 0:02:22]}  Nd7 {[%clk 0:02:27]} 21. Bb5 {[%clk 0:02:10]}  f6 {[%clk 0:02:21]} 22. Ned3 {[%clk 0:02:00]}  a6 {[%clk 0:02:15]} 23. Ba4 {[%clk 0:01:59]}  b5 {[%clk 0:02:15]} 24. Bb3 {[%clk 0:01:58]}  Nb6 {[%clk 0:02:04]} 25. f3 {[%clk 0:01:44]}  Rc8 {[%clk 0:02:04]} 26. Qe3 {[%clk 0:01:44]}  Ng3 {[%clk 0:01:59]} 27. Nc5 {[%clk 0:01:37]}  g5 {[%clk 0:01:39]} 28. Ne2 {[%clk 0:01:28]}  Nxe2+ {[%clk 0:01:36]} 29. Rxe2 {[%clk 0:01:28]}  Nc4 {[%clk 0:01:36]} 30. Qe7 {[%clk 0:01:27]}  Qxe7 {[%clk 0:01:36]} 31. Rxe7 {[%clk 0:01:28]}  a5 {[%clk 0:01:34]} 32. Kf2 {[%clk 0:01:20]}  a4 {[%clk 0:01:33]} 33. Bxc4 {[%clk 0:01:17]}  bxc4 {[%clk 0:01:33]} 34. Nxa4 {[%clk 0:01:15]}  Rb8 {[%clk 0:01:34]} 35. a3 {[%clk 0:01:12]}  Bc2 {[%clk 0:01:29]} 36. Nc3 {[%clk 0:01:12]}  Rxb2 {[%clk 0:01:28]} 37. Re2 {[%clk 0:01:12]}  Kf7 {[%clk 0:00:53]} 38. Nxd5 {[%clk 0:01:11]}  Rb5 {[%clk 0:00:51]} 39. Nc3 {[%clk 0:01:11]}  Rb2 {[%clk 0:00:47]} 40. d5 {[%clk 0:01:10]}  f5 {[%clk 0:00:46]} 41. d6 {[%clk 0:01:09]}  Rb6 {[%clk 0:00:46]} 42. Rxc2 {[%clk 0:01:08]}  Rxd6 {[%clk 0:00:46]} 43. a4 {[%clk 0:01:07]}  Ke6 {[%clk 0:00:46]} 44. a5 {[%clk 0:01:07]}  Ke5 {[%clk 0:00:46]} 45. Re2+ {[%clk 0:01:03]}  Kf6 {[%clk 0:00:46]} 46. Ra2 {[%clk 0:01:03]}  Ra6 {[%clk 0:00:46]} 47. Nd5+ {[%clk 0:00:53]}  Ke5 {[%clk 0:00:46]} 48. Nb4 {[%clk 0:00:54]}  Ra8 {[%clk 0:00:47]} 49. a6 {[%clk 0:00:54]}  Kd4 {[%clk 0:00:47]} 50. a7 {[%clk 0:00:53]}  Kc5 {[%clk 0:00:47]} 51. Nc2 {[%clk 0:00:49]}  c3 {[%clk 0:00:44]} 52. Ke2 {[%clk 0:00:46]}  Kc4 {[%clk 0:00:45]} 53. Ra3 {[%clk 0:00:46]}  f4 {[%clk 0:00:39]} 54. Ra6 {[%clk 0:00:41]}  Kb3 {[%clk 0:00:36]} 55. Kd3 {[%clk 0:00:41]}  Kb2 {[%clk 0:00:33]} 56. Nd4 {[%clk 0:00:38]}  h5 {[%clk 0:00:29]} 57. Rb6+ {[%clk 0:00:38]}  Kc1 {[%clk 0:00:28]} 58. Ne2+ {[%clk 0:00:37]}  Kd1 {[%clk 0:00:28]} 59. Rb1# {[%clk 0:00:38]} 1-0


[Site "https://www.chess.com"]